[Event "CCT Chesscom Classic-D1 2024"]
[Site "Online"]
[Date "2024.05.10"]
[Round "1"]
[White "Ivic, Velimir"]
[Black "Carlsen, Magnus"]
[Result "0-1"]
[ECO "B31"]
[WhiteElo "2596"]
[BlackElo "2830"]
[Annotator "TA"]
[PlyCount "124"]
[EventDate "2024.05.08"]
[EventType "k.o."]
[EventCountry "NET"]
[SourceTitle "playchess.com"]
[Source "ChessBase"]
[SourceQuality "1"]
[TimeControl "600+2"]

{[%evp 43,124,36,24,36,41,45,42,46,74,70,56,93,104,89,106,94,90,50,134,125,142,148,149,0,0,0,0,-14,-26,-12,-11,-18,-14,-15,-18,-16,-23,-17,-8,-8,-8,-8,0,-8,-8,-22,-30,-1398,-214,-1112,-1199,-1188,-910,-808,-654,-678,-584,-518,-514,-434,-372,-353,-241,-2133,-2057,-29980,-29981,-29981,-29982,-29979,-29980,-29990,-29981,-29985,-29986,-29992,-29993,-29993,-29994,-29994,-29995,-29995,-29996]} 1. e4 {[%emt 0:00:02]} c5 {[%emt 0:00:27]} 2. Nf3 {[%emt 0:00:03]} Nc6 {[%emt 0:00:01]} 3. Bb5 {[%emt 0:00:02]} g6 {[%emt 0:00:05]} 4. Bxc6 {[%emt 0:00:06]} dxc6 {[%emt 0:00:07]} 5. d3 {[%emt 0:00:05]} Qc7 {[%emt 0:00:01]} 6. a4 {[%emt 0:00:16] B31: Sicilian: 2...Nc6 3 Bb5 g6.} e5 {[%emt 0:00:04]} 7. a5 {[%emt 0:00:08]} Nf6 {[%emt 0:00:07]} 8. Nbd2 {[%emt 0:00:23]} Be6 $146 {[%emt 0:00:13]} ({Predecessor:} 8... Nh5 9. Nb3 Be6 10. Be3 Nf4 11. O-O Bxb3 12. cxb3 Ne6 13. Qc1 Be7 14. Qc3 Bd6 {0-1 Vokhidov,S (2586)-Isanzhulov,A (2341) Asian Continental blitz op 20th 2023 (6)}) 9. b3 {[%emt 0:00:12]} h6 {[%emt 0:00:34]} 10. Nc4 {[%emt 0:00:21]} Nd7 {[%emt 0:00:03]} 11. O-O {[%emt 0:00:26]} Bg7 {[%emt 0:00:02]} 12. Kh1 {[%emt 0:00:46]} O-O {[%emt 0:00:04]} 13. Ng1 {[%emt 0:00:01]} b5 {[%emt 0:00:05]} 14. axb6 {[%emt 0:00:11]} axb6 {[%emt 0:00:01]} 15. Rxa8 {[%emt 0:00:00]} Rxa8 {[%emt 0:00:02]} 16. Bb2 {[%emt 0:00:13]} b5 {[%emt 0:00:17]} 17. Ne3 {[%emt 0:00:15]} c4 {[%emt 0:00:03]} 18. bxc4 {[%emt 0:00:51]} bxc4 {[%emt 0:00:02]} 19. d4 {[%emt 0:00:39]} Ra2 {[%emt 0:00:13]} 20. d5 {[%emt 0:00:45]} Bxd5 {[%emt 0:02:52]} 21. Qb1 {[%emt 0:01:30]} Ra5 {[%emt 0:00:03]} 22. exd5 {[%emt 0:00:52]} cxd5 {[%emt 0:00:00]} 23. Bc3 {[%emt 0:00:10]} Rc5 {[%emt 0:00:02]} 24. Qa2 {[%emt 0:00:34]} (24. Bb4 $5 Rb5 $8 25. Qa2 $11) 24... d4 {[%emt 0:00:07]} 25. Bb4 {[%emt 0:00:01]} dxe3 {[%emt 0:00:46]} 26. Bxc5 {[%emt 0:00:02]} Qxc5 {[%emt 0:00:00]} 27. fxe3 {[%emt 0:00:09]} Nf6 {[%emt 0:00:01]} 28. Qa8+ {[%emt 0:00:05]} Kh7 {[%emt 0:00:02]} 29. Qb7 {[%emt 0:00:11]} Kg8 {[%emt 0:00:14]} 30. Nf3 {[%emt 0:00:29]} e4 {[%emt 0:01:07]} (30... Ng4 $14) 31. Nd4 $16 {[%emt 0:00:07]} Qa3 {[%emt 0:00:02] [#]} 32. Nc6 $1 {[%emt 0:00:31]} Qd6 {[%emt 0:00:37]} (32... Qxe3 $2 33. Nd8 Kh7 34. Qxf7 $18) 33. Qb8+ {[%emt 0:00:31]} (33. h3 $16) 33... Qxb8 $11 {[%emt 0:00:01]} 34. Nxb8 {[%emt 0:00:00]} Nd5 {[%emt 0:00:02]} 35. Re1 {[%emt 0:00:10]} Bc3 {[%emt 0:00:04]} 36. Re2 {[%emt 0:00:00]} f5 {[%emt 0:00:04]} 37. Nc6 {[%emt 0:00:05]} Kf7 {[%emt 0:00:04]} 38. g3 {[%emt 0:00:02]} Ke6 {[%emt 0:00:11]} 39. Kg2 {[%emt 0:00:00]} Kd6 {[%emt 0:00:22]} 40. Nd4 {[%emt 0:00:01]} Bxd4 {[%emt 0:00:17]} 41. exd4 {[%emt 0:00:01]} c3 {[%emt 0:00:00]} 42. Kf2 {[%emt 0:00:03]} Nb4 {[%emt 0:00:06]} 43. Ke3 {[%emt 0:00:01]} Kd5 {[%emt 0:00:02]} 44. Rf2 $1 {[%emt 0:00:04]} Kc4 {[%emt 0:00:05]} 45. g4 $2 {[%emt 0:00:05][%mdl 8192]} (45. h4 $11) 45... Nd5+ $19 {[%emt 0:00:02]} (45... fxg4 $2 {is the wrong capture.} 46. Kxe4 Nd5 47. Rf8 $18) 46. Ke2 {[%emt 0:00:01]} f4 {[%emt 0:00:10]} ({And not} 46... Kxd4 47. gxf5 gxf5 48. Rxf5 $11) (46... fxg4 $2 47. Rf8 $19) 47. Rf1 {[%emt 0:00:00]} g5 {[%emt 0:00:31]} 48. Ra1 {[%emt 0:00:01]} Ne3 {[%emt 0:00:09]} ({Weaker is} 48... Kxd4 49. Ra4+ Ke5 50. Ra5 $15) 49. Ra4+ {[%emt 0:00:02]} Kd5 {[%emt 0:00:01]} 50. Ra5+ {[%emt 0:00:07]} Kxd4 {[%emt 0:00:01]} 51. Ra4+ {[%emt 0:00:00]} Nc4 {[%emt 0:00:01]} 52. Ra6 {[%emt 0:00:02]} e3 {[%emt 0:00:11]} 53. Rxh6 $2 {[%emt 0:00:04]} (53. Ra4) 53... Ne5 $19 {[%emt 0:00:10]} 54. h3 {[%emt 0:00:01]} f3+ {[%emt 0:00:02]} 55. Ke1 {[%emt 0:00:01]} Nc4 {[%emt 0:00:09]} 56. Rf6 {[%emt 0:00:02]} Nd2 {[%emt 0:00:04]} 57. Kd1 {[%emt 0:00:03]} Ke4 {[%emt 0:00:03]} 58. Ke1 {[%emt 0:00:01]} f2+ {[%emt 0:00:01]} 59. Ke2 {[%emt 0:00:00]} f1=Q+ {[%emt 0:00:00]} 60. Rxf1 {[%emt 0:00:01]} Nxf1 {[%emt 0:00:02]} 61. Kxf1 {[%emt 0:00:00]} Kf3 {[%emt 0:00:01]} 62. Ke1 {[%emt 0:00:02]} e2 {[%emt 0:00:00]} 0-1

[Event "CCT Chesscom Classic-D1 2024"]
[Site "Online"]
[Date "2024.05.10"]
[Round "1"]
[White "Lazavik, Denis"]
[Black "Nepomniachtchi, Ian"]
[Result "1-0"]
[ECO "D37"]
[WhiteElo "2572"]
[BlackElo "2770"]
[Annotator "TA"]
[PlyCount "49"]
[EventDate "2024.05.08"]
[EventType "k.o."]
[EventCountry "NET"]
[SourceTitle "playchess.com"]
[Source "ChessBase"]
[SourceQuality "1"]
[TimeControl "600+2"]

{[%evp 10,49,25,20,32,43,27,11,27,11,25,16,3,12,20,32,29,42,18,25,35,6,30,42,65,53,112,122,233,235,433,467,461,454,964,958,1363,1366,2214,2075,29996,956]} 1. d4 {[%emt 0:00:03]} Nf6 {[%emt 0:00:05]} 2. c4 {[%emt 0:00:01]} e6 {[%emt 0:00:04]} 3. Nf3 {[%emt 0:00:01]} d5 {[%emt 0:00:01]} 4. Nc3 {[%emt 0:00:02]} Be7 {[%emt 0:00:02]} 5. Bf4 {[%emt 0:00:11]} c5 {[%emt 0:00:05]} 6. dxc5 {[%emt 0:00:23]} Bxc5 {[%emt 0:00:04]} 7. e3 {[%emt 0:00:04]} Nc6 {[%emt 0:00:02]} 8. cxd5 {[%emt 0:00:33]} Nxd5 {[%emt 0:00:03] The position is equal.} 9. Nxd5 {[%emt 0:00:01]} exd5 {[%emt 0:00:00]} 10. Bd3 {[%emt 0:00:08]} Bb4+ {[%emt 0:00:02]} 11. Nd2 {[%emt 0:00:01]} g5 {[%emt 0:00:01]} 12. Bg3 {[%emt 0:00:05]} h5 {[%emt 0:00:02][%cal Bh7h5,Bh5h4][%mdl 32] [#] And now ...h4 would win.} 13. h3 {[%emt 0:00:58]} h4 {[%emt 0:00:03]} 14. Bh2 {[%emt 0:00:01]} d4 {[%emt 0:00:50] ...dxe3 would now be deadly.} 15. Qe2 {[%emt 0:00:33]} Be6 {[%emt 0:00:23]} (15... dxe3 $5 16. fxe3 Qa5 $11) 16. O-O {[%emt 0:00:15]} dxe3 {[%emt 0:00:03]} 17. Qxe3 {[%emt 0:00:05]} Bxd2 {[%emt 0:01:18]} ({Black should try} 17... Qb6 $14 18. Qe2 (18. Qxg5 Qd4 $14) 18... g4) 18. Qxd2 $16 {[%emt 0:00:02]} Qd5 {[%emt 0:00:27]} (18... Qf6 $16 {was worth a try.}) 19. Qe3 $18 {[%emt 0:00:13] Black must now prevent Rfd1.} O-O-O $2 {[%emt 0:00:24] [#]} (19... Rd8) 20. Be4 {[%emt 0:00:04] A strong pair of Bishops.} Qd4 {[%emt 0:00:21]} 21. Qf3 {[%emt 0:00:06]} Ne5 {[%emt 0:01:53]} (21... Bd5 $142) 22. Rac1+ {[%emt 0:00:23]} Kd7 {[%emt 0:00:19]} 23. Qf6 {[%emt 0:00:39]} Qxe4 {[%emt 0:00:26]} 24. Bxe5 {[%emt 0:00:04]} ({Weaker is} 24. Qxe5 Qxe5 25. Bxe5 Rh6 $16) 24... Bc4 {[%emt 0:00:17]} 25. Rfe1 {[%emt 0:00:10] Weighted Error Value: White=0.05 (flawless) /Black=0.65.  Mistake:       	---       	Black=4      Inaccurate:     	White=1     	Black=1      OK:         	White=9     	Black=4} (25. Rfd1+ $142 Qd5 26. Rxd5+ Bxd5 27. Rc7+ Ke8 28. Qxh8#) 1-0

[Event "CCT Chesscom Classic-D1 2024"]
[Site "Online"]
[Date "2024.05.12"]
[Round "3"]
[White "Carlsen, Magnus"]
[Black "Keymer, Vincent"]
[Result "1/2-1/2"]
[ECO "C54"]
[WhiteElo "2830"]
[BlackElo "2726"]
[Annotator "RC"]
[PlyCount "121"]
[EventDate "2024.05.08"]
[EventType "k.o."]
[EventCountry "NET"]
[SourceTitle "playchess.com"]
[Source "ChessBase"]
[SourceQuality "1"]
[TimeControl "600+2"]

1. e4 {[%emt 0:00:05]} e5 {[%emt 0:00:04]} 2. Nf3 {[%emt 0:00:02]} Nc6 {[%emt 0:00:01]} 3. Bc4 {[%emt 0:00:00]} Nf6 {[%emt 0:00:01]} 4. d3 {[%emt 0:00:01]} Bc5 {[%emt 0:00:01]} 5. O-O {[%emt 0:00:01]} a6 {[%emt 0:00:02]} 6. c3 {[%emt 0:00:04]} Ba7 {[%emt 0:00:03]} 7. a4 {[%emt 0:00:10]} d6 {[%emt 0:00:17]} 8. Nbd2 {[%emt 0:00:05]} O-O {[%emt 0:00:06]} 9. h3 {[%emt 0:00:04]} h6 {[%emt 0:00:03]} 10. b4 {[%emt 0:00:03]} Ne7 {[%emt 0:00:01]} 11. Re1 {[%emt 0:00:04]} Be6 {[%emt 0:00:02]} 12. Bxe6 {[%emt 0:00:26]} fxe6 {[%emt 0:00:02]} 13. Nf1 {[%emt 0:00:41]} Ng6 {[%emt 0:00:02]} 14. Ra2 {[%emt 0:00:07]} d5 {[%emt 0:00:01]} 15. Qe2 {[%emt 0:00:12]} Qd6 {[%emt 0:01:53]} 16. c4 {[%emt 0:00:27]} dxc4 {[%emt 0:00:44]} 17. dxc4 {[%emt 0:00:01]} a5 {[%emt 0:00:00]} 18. bxa5 {[%emt 0:00:56]} Bc5 {[%emt 0:00:19]} 19. Bd2 {[%emt 0:00:15]} Qc6 {[%emt 0:00:18]} 20. Rb2 {[%emt 0:00:18]} b6 {[%emt 0:00:12]} 21. Rb5 {[%emt 0:00:14]} Ne8 {[%emt 0:00:05]} 22. Be3 {[%emt 0:00:36]} Bxe3 {[%emt 0:00:52]} 23. Nxe3 {[%emt 0:00:09]} Rxa5 {[%emt 0:00:53]} 24. Ng4 {[%emt 0:00:23]} Rxb5 {[%emt 0:01:12]} 25. cxb5 {[%emt 0:00:08]} Qc3 {[%emt 0:00:02]} 26. Qe3 {[%emt 0:00:57]} Qxe3 {[%emt 0:00:05]} 27. Rxe3 {[%emt 0:00:06]} Nd6 {[%emt 0:00:01]} 28. Rc3 {[%emt 0:00:03]} Ra8 {[%emt 0:01:00]} 29. Rxc7 {[%emt 0:00:03]} Rxa4 {[%emt 0:00:02]} 30. Rc6 {[%emt 0:00:05]} Nxb5 {[%emt 0:00:27]} 31. Rxe6 {[%emt 0:00:04]} Nf4 {[%emt 0:00:21]} 32. Rxb6 {[%emt 0:00:35]} Nc3 {[%emt 0:00:00]} 33. Ngxe5 {[%emt 0:00:15]} Nxe4 {[%emt 0:00:02]} 34. Rb2 {[%emt 0:00:09]} Kh7 {[%emt 0:00:24]} 35. Kh2 {[%emt 0:00:04]} Nd5 {[%emt 0:00:08]} 36. Ne1 {[%emt 0:00:31]} Ndc3 {[%emt 0:00:19]} 37. f3 {[%emt 0:00:02]} Nf6 {[%emt 0:00:02]} 38. N1d3 {[%emt 0:00:10]} Ra7 {[%emt 0:00:04]} 39. Nf4 {[%emt 0:00:13]} g5 {[%emt 0:00:12]} 40. Ne6 {[%emt 0:00:30]} Re7 {[%emt 0:00:10]} 41. Rb6 {[%emt 0:00:05]} Ncd5 {[%emt 0:00:02]} 42. Rd6 {[%emt 0:00:06]} Re8 {[%emt 0:00:14]} 43. g4 {[%emt 0:00:54]} Nc3 {[%emt 0:00:22]} 44. h4 {[%emt 0:00:17]} gxh4 {[%emt 0:00:06]} 45. Kh3 {[%emt 0:00:01]} Ncd5 {[%emt 0:00:08]} 46. Kxh4 {[%emt 0:00:04]} Re7 {[%emt 0:00:01]} 47. f4 {[%emt 0:00:21]} Ne3 {[%emt 0:00:01]} 48. Rc6 {[%emt 0:00:13]} Ned5 {[%emt 0:00:06]} 49. Nd4 {[%emt 0:00:10]} Nxf4 {[%emt 0:00:04]} 50. Rxf6 {[%emt 0:00:02]} Ng2+ {[%emt 0:00:01]} 51. Kg3 {[%emt 0:00:05]} Rxe5 {[%emt 0:00:00]} 52. Nf5 {[%emt 0:00:02]} Ne3 {[%emt 0:00:03]} 53. Rxh6+ {[%emt 0:00:04]} Kg8 {[%emt 0:00:01]} 54. Kf4 {[%emt 0:00:03]} Nxf5 {[%emt 0:00:01]} 55. Rg6+ {[%emt 0:00:01]} Kf7 {[%emt 0:00:02]} 56. Kxe5 {[%emt 0:00:01]} Kxg6 {[%emt 0:00:01]} 57. gxf5+ {[%emt 0:00:00]} Kf7 {[%emt 0:00:01]} 58. f6 {[%emt 0:00:00]} Kf8 {[%emt 0:00:00]} 59. Ke6 {[%emt 0:00:00]} Ke8 {[%emt 0:00:00]} 60. f7+ {[%emt 0:00:00]} Kf8 {[%emt 0:00:01]} 61. Kf6 {[%emt 0:00:00]} 1/2-1/2

[Event "CCT Chesscom Classic-D1 2024"]
[Site "Online"]
[Date "2024.05.12"]
[Round "3"]
[White "Keymer, Vincent"]
[Black "Carlsen, Magnus"]
[Result "0-1"]
[ECO "A17"]
[WhiteElo "2726"]
[BlackElo "2830"]
[Annotator "TA"]
[PlyCount "100"]
[EventDate "2024.05.08"]
[EventType "k.o."]
[EventCountry "NET"]
[SourceTitle "playchess.com"]
[Source "ChessBase"]
[SourceQuality "1"]
[TimeControl "600+2"]

{[%evp 9,100,5,10,8,5,12,0,19,8,13,9,10,14,24,23,0,0,0,0,0,0,16,25,-18,37,32,10,21,26,32,20,15,121,0,0,-12,-10,-60,-64,-52,-48,-53,-59,-58,-50,-60,-54,-63,-57,-66,-56,-65,-60,-64,-65,-65,-66,-66,-66,-66,-66,-65,-68,-46,-47,-64,-47,-47,-47,-48,-49,-58,-61,-71,-70,-79,-69,-90,-91,-110,-99,-193,-193,-29975,-29977,-29984,-29985,-29985,-29986,-29986,-29987,-29987,-29988]} 1. Nf3 {[%emt 0:00:03]} d5 {[%emt 0:00:05]} 2. e3 {[%emt 0:00:00]} Nf6 {[%emt 0:00:05]} 3. c4 {[%emt 0:00:02]} e6 {[%emt 0:00:01]} 4. Nc3 {[%emt 0:00:01]} dxc4 {[%emt 0:00:12]} 5. Bxc4 {[%emt 0:00:01]} a6 {[%emt 0:00:02]} 6. e4 {[%emt 0:00:00]} c5 {[%emt 0:00:12]} 7. d4 {[%emt 0:00:02]} cxd4 {[%emt 0:00:06]} 8. Nxd4 {[%emt 0:00:01] The position is equal.} Bd6 {[%emt 0:00:02]} 9. Be3 {[%emt 0:00:11]} O-O {[%emt 0:00:17]} 10. Rc1 {[%emt 0:00:01]} b5 {[%emt 0:00:25]} 11. Bb3 {[%emt 0:00:01]} Bb7 {[%emt 0:00:51][%cal Ob5b4] [#]} 12. Bxe6 $1 {[%emt 0:00:01]} fxe6 {[%emt 0:00:29]} 13. Nxe6 {[%emt 0:00:02]} Qe7 {[%emt 0:00:01]} 14. Nxf8 {[%emt 0:00:06]} Kxf8 {[%emt 0:00:06]} 15. f3 {[%emt 0:02:38]} Nbd7 {[%emt 0:00:02]} 16. Ne2 {[%emt 0:00:29]} Ne5 {[%emt 0:00:14]} (16... Bb4+ $1 $11 17. Nc3 Ne5) 17. O-O $1 $14 {[%emt 0:00:38][%cal Od1d6]} Rd8 {[%emt 0:00:04][%cal Oe5d3]} 18. Qc2 {[%emt 0:00:54]} Rc8 {[%emt 0:00:03]} 19. Qb1 {[%emt 0:00:57]} Nc4 {[%emt 0:01:23]} 20. Bd4 {[%emt 0:00:03]} Bc5 {[%emt 0:00:30] [#]} (20... Kg8 $11 {remains equal.} 21. Qd3 Bb8) 21. Rfd1 {[%emt 0:00:49]} (21. Qa1 $1 $16) 21... Nxe4 $1 $11 {[%emt 0:00:08]} 22. b3 {[%emt 0:00:38]} (22. fxe4 $5 Bxe4 23. Qa1 Bxg2 24. Bxc5 Rxc5 25. Ng3 $11) 22... Ne3 $36 {[%emt 0:02:31][%mdl 2048] Black is pushing.} 23. fxe4 {[%emt 0:01:21]} ({Better is} 23. Re1 $1 $11 Qg5 24. Bxc5+ Rxc5 (24... Nxc5 25. Ng3 $14) 25. Ng3 Nxg2 (25... Nxg3 26. hxg3 Bxf3 27. Rxc5 $11) 26. Kxg2 (26. Nxe4 $2 Bxe4 27. Rxc5 Qxc5+ 28. Kxg2 Bxb1 $19) 26... Qd2+ 27. Re2 Qxc1 (27... Rxc1 28. Rxd2 Rxb1 29. fxe4 $11) 28. Qxc1 Rxc1 29. Nxe4) 23... Nxd1 $15 {[%emt 0:00:15]} 24. Rxd1 {[%emt 0:00:16]} Bxe4 {[%emt 0:00:09]} 25. Qb2 {[%emt 0:00:17] White is weak on the light squares} Bb4 {[%emt 0:01:15] This pair of bishops is nice.} (25... Ba3 {keeps more tension.} 26. Qd2 Rc2 27. Qf4+ Kg8) 26. Rc1 {[%emt 0:00:27] Inhibits Rc2.} Re8 {[%emt 0:00:19]} 27. Ng3 {[%emt 0:00:07]} Kg8 {[%emt 0:00:04]} 28. Qf2 {[%emt 0:00:23]} Bg6 {[%emt 0:00:06]} 29. h3 {[%emt 0:00:12]} Bd6 {[%emt 0:00:18] Hoping for ...Rf8.} 30. Nf5 {[%emt 0:00:06]} Qg5 {[%emt 0:00:07][%csl LRc1,LRf5]} 31. Rf1 {[%emt 0:00:09]} Rf8 {[%emt 0:00:02][%cal Rf8f5]} 32. Qe3 $1 {[%emt 0:00:05]} Qxe3+ {[%emt 0:00:01]} ({Reject} 32... Rxf5 33. Qe6+ Rf7 34. Rxf7 Bxf7 35. Qxd6 $14) 33. Nxe3 {[%emt 0:00:02]} Rxf1+ {[%emt 0:00:07]} 34. Kxf1 {[%emt 0:00:03][%mdl 4096] Endgame. KBB-KBN} Bb1 {[%emt 0:00:02]} 35. a4 {[%emt 0:00:01]} Ba2 {[%emt 0:00:06]} 36. axb5 {[%emt 0:00:01]} axb5 {[%emt 0:00:01]} 37. Bxg7 $1 {[%emt 0:00:01]} Bc5 {[%emt 0:00:08]} 38. Nf5 {[%emt 0:00:01][%cal Of5d4]} Bxb3 {[%emt 0:00:03] Threatens to win with ...Bc4+.} ({But not} 38... Bb1 $6 39. Bd4 Bf8 40. Ne3 $16) 39. Bd4 {[%emt 0:00:03]} Bf8 {[%emt 0:00:02] Prevents Nh6+} 40. Kf2 {[%emt 0:00:04]} Kf7 {[%emt 0:00:02]} 41. g4 {[%emt 0:00:02]} Ke6 {[%emt 0:00:02]} 42. Ke3 {[%emt 0:00:02]} Bc2 {[%emt 0:00:03]} 43. Ng7+ {[%emt 0:00:04]} Kd5 {[%emt 0:00:01]} 44. Bb2 {[%emt 0:00:02]} b4 {[%emt 0:00:08]} 45. Nh5 {[%emt 0:00:01]} (45. Nf5 $17) 45... Kc4 $19 {[%emt 0:00:03]} 46. Bg7 $2 {[%emt 0:00:04]} (46. Kd2 $19 Bg6 47. Ng7) 46... Bxg7 {[%emt 0:00:04] Black mates.} 47. Nxg7 {[%emt 0:00:00]} Kc3 {[%emt 0:00:01]} 48. Ne6 {[%emt 0:00:03]} b3 {[%emt 0:00:00]} 49. Nc7 {[%emt 0:00:04]} b2 {[%emt 0:00:00]} 50. Nb5+ {[%emt 0:00:00]} Kb4 {[%emt 0:00:01] Weighted Error Value: White=0.25 (precise) /Black=0.08 (flawless) .  Mistake:       	White=4     	Black=2      Inaccurate:     	White=1     	---        OK:         	White=15    	Black=21     Best:        	White=1     	Black=4      Strong:       	White=3     	Black=1} 0-1

[Event "CCT Chesscom Classic-D1 2024"]
[Site "Online"]
[Date "2024.05.15"]
[Round "4"]
[White "Carlsen, Magnus"]
[Black "Firouzja, Alireza"]
[Result "0-1"]
[ECO "E04"]
[WhiteElo "2830"]
[BlackElo "2738"]
[Annotator "TA"]
[PlyCount "120"]
[EventDate "2024.05.08"]
[EventType "k.o."]
[EventCountry "NET"]
[SourceTitle "playchess.com"]
[Source "ChessBase"]
[SourceQuality "1"]
[TimeControl "600+2"]

{[%evp 38,120,0,-7,-16,-22,16,-34,-55,-40,-38,-32,-37,-37,-41,-36,-39,-33,-39,-47,-38,-28,-38,-58,-71,-68,-28,-67,-90,-86,-99,-100,-93,-114,-106,-102,-102,-154,-154,-207,-208,-191,-163,-172,0,-160,-140,-141,-103,-113,-103,-110,-70,-76,-45,-45,-45,-45,-8,-8,-8,-8,0,0,0,0,0,0,0,0,0,0,0,0,0,0,0,0,0,0,0,0,0,-7,-7]} 1. d4 {[%emt 0:00:04]} d5 {[%emt 0:02:02]} 2. c4 {[%emt 0:00:05]} e6 {[%emt 0:00:03]} 3. Nf3 {[%emt 0:00:03]} Nf6 {[%emt 0:00:03]} 4. g3 {[%emt 0:00:04]} dxc4 {[%emt 0:00:03]} 5. Bg2 {[%emt 0:00:04]} c5 {[%emt 0:00:02]} 6. Qa4+ {[%emt 0:00:03]} Bd7 {[%emt 0:00:11] E04: Open Catalan: 5 Nf3.} 7. Qxc4 {[%emt 0:00:03]} b5 {[%emt 0:00:18]} 8. Qc2 {[%emt 0:00:10]} Na6 {[%emt 0:00:05]} 9. O-O {[%emt 0:00:07]} Rc8 {[%emt 0:00:05]} 10. a3 {[%emt 0:00:42]} cxd4 {[%emt 0:00:07]} 11. Qd1 {[%emt 0:00:06]} Nc5 $146 {[%emt 0:00:22]} ({Predecessor:} 11... Qb6 12. b4 Bc6 13. Qxd4 Qb7 14. Be3 Rc7 15. Nbd2 Be7 16. Nb3 Be4 17. Na5 Qd5 {1-0 Tran,Q (1821)-Lam,D (1546) VIE-ch Ha Tien 2023 (5)}) 12. Nxd4 {[%emt 0:00:09]} e5 {[%emt 0:00:08]} 13. Nf3 {[%emt 0:00:06]} Be6 {[%emt 0:00:43]} 14. Qxd8+ {[%emt 0:01:11]} Rxd8 {[%emt 0:00:07]} 15. Nc3 {[%emt 0:00:04]} Nb3 {[%emt 0:00:06]} 16. Rb1 {[%emt 0:00:04]} Bf5 {[%emt 0:00:20]} 17. Nxe5 {[%emt 0:01:08]} Bxb1 {[%emt 0:00:12]} 18. Bc6+ {[%emt 0:00:03]} Ke7 {[%emt 0:00:03]} 19. Nxb1 {[%emt 0:00:03]} Ke6 {[%emt 0:00:32]} 20. Nd3 {[%emt 0:00:08]} Nd4 {[%emt 0:00:24]} 21. Nf4+ {[%emt 0:00:03]} Kf5 {[%emt 0:00:03]} (21... Ke7 $5 22. Bg2 g5 $11) 22. Bg2 {[%emt 0:00:04]} (22. e4+ $11 Ke5 23. Bb7) 22... g5 $15 {[%emt 0:00:02]} 23. Bh3+ {[%emt 0:00:11]} g4 $1 {[%emt 0:00:03]} 24. Bg2 {[%emt 0:00:03]} Bd6 {[%emt 0:00:05]} 25. Nc3 {[%emt 0:00:03]} Rhe8 {[%emt 0:00:08]} 26. f3 {[%emt 0:01:40]} Bxf4 $1 {[%emt 0:00:06]} 27. fxg4+ {[%emt 0:00:03]} Kg6 $1 {[%emt 0:00:03]} 28. Bxf4 {[%emt 0:00:04]} Nxe2+ {[%emt 0:00:12]} 29. Nxe2 {[%emt 0:00:04]} Rxe2 {[%emt 0:00:02]} 30. g5 {[%emt 0:00:02]} Nd5 {[%emt 0:00:11]} 31. Bc1 {[%emt 0:00:13]} Ne3 {[%emt 0:00:30]} 32. Bf3 {[%emt 0:00:03]} Nxf1 {[%emt 0:00:05]} 33. Bxe2 {[%emt 0:00:03]} Nd2 {[%emt 0:00:02]} 34. h4 {[%emt 0:00:30]} a6 {[%emt 0:00:08]} 35. Kf2 {[%emt 0:00:04]} f6 {[%emt 0:00:16]} 36. gxf6 {[%emt 0:00:10]} Kxf6 {[%emt 0:00:06]} 37. g4 {[%emt 0:00:07] [#]} ({White should play} 37. Bg4) 37... Ke5 $1 $17 {[%emt 0:00:07]} 38. Ke1 {[%emt 0:00:16]} (38. Kg2 $17) 38... Ne4 $19 {[%emt 0:00:10]} 39. Be3 {[%emt 0:00:13]} Rc8 {[%emt 0:00:08]} 40. Bd1 {[%emt 0:00:04]} Rd8 $2 {[%emt 0:00:07]} ({Black should try} 40... Nd6 $19 {Strongly threatening ...Nc4.} 41. Bd2 Kd4) 41. Bc2 $2 {[%emt 0:00:09]} (41. Be2 $1 $11) 41... Rf8 $17 {[%emt 0:00:04]} 42. Bd1 {[%emt 0:00:07]} Nd6 {[%emt 0:00:23]} 43. h5 {[%emt 0:00:14]} Nc4 {[%emt 0:00:05]} 44. Bc1 {[%emt 0:00:03]} Kd4 {[%emt 0:00:07]} 45. Bc2 $1 {[%emt 0:00:18]} Ne3 {[%emt 0:00:10]} 46. Bxe3+ {[%emt 0:00:06]} Kxe3 {[%emt 0:00:02]} 47. Bxh7 {[%emt 0:00:03]} Kf4 {[%emt 0:00:05]} 48. Bf5 {[%emt 0:00:04]} Kg5 {[%emt 0:00:04]} 49. Kd2 {[%emt 0:00:02]} Rd8+ {[%emt 0:00:07]} 50. Kc3 {[%emt 0:00:03]} a5 {[%emt 0:00:05]} 51. b4 {[%emt 0:00:34]} axb4+ {[%emt 0:00:06]} 52. axb4 {[%emt 0:00:03]} Rd6 {[%emt 0:00:05]} 53. Kb3 {[%emt 0:00:11]} Rd4 {[%emt 0:00:12]} 54. Be6 {[%emt 0:00:05]} Rd6 {[%emt 0:00:06]} 55. Bf5 {[%emt 0:00:03]} Rd4 {[%emt 0:00:03]} 56. Ka3 {[%emt 0:00:03]} Rd6 {[%emt 0:00:05]} 57. Kb2 {[%emt 0:00:03]} Rd4 {[%emt 0:00:03]} 58. Kb3 {[%emt 0:00:03]} Rd6 {[%emt 0:00:07]} 59. Kc3 {[%emt 0:00:03]} Rd8 {[%emt 0:00:04]} 60. Bd3 {[%emt 0:00:06]} Kxg4 {[%emt 0:00:12]} 0-1